lending/lending_fUSD_20240824
["ID","MTS","AMOUNT","RATE_DAILY","PERIOD"]
[335782069,1724489444513,-500.0,0.00010999,2]
[335782071,1724489444523,-500.0,0.00010999,2]
[335782073,1724489444533,-500.0,0.00010999,2]
[335782075,1724489444542,-500.0,0.00010999,2]
[335782077,1724489444552,-500.0,0.00010999,2]
[335782079,1724489444561,-500.0,0.00010999,2]
[335782081,1724489444570,-500.0,0.00010999,2]
[335782083,1724489444579,-500.0,0.00010999,2]
[335782085,1724489444589,-500.0,0.00010999,2]
[335782087,1724489444598,-498.12922683,0.00010999,2]
[335782089,1724489444607,-500.0,0.00010999,2]
[335782090,1724489444617,-500.0,0.00010999,2]
[335782092,1724489444626,-500.0,0.00010999,2]
[335782094,1724489444635,-500.0,0.00010999,2]
[335782096,1724489444644,-500.0,0.00010999,2]
[335782098,1724489444654,-500.0,0.00010999,2]
[335782100,1724489444664,-290.40094088,0.00010999,2]
[335782102,1724489444673,-500.0,0.00010999,2]
[335782104,1724489444682,-500.0,0.00010999,2]
[335782106,1724489444691,-500.0,0.00010999,2]
[335782108,1724489444701,-500.0,0.00010999,2]
[335782110,1724489444712,-500.0,0.00010999,2]
[335782112,1724489444729,-500.0,0.00010999,2]
[335782114,1724489444739,-500.0,0.00010999,2]
[335782116,1724489444748,-361.07,0.00010999,2]
[335782118,1724489444758,-500.0,0.00010999,2]
[335782119,1724489444767,-500.0,0.00010999,2]
[335782122,1724489444777,-550.0,0.00011,2]
[335782123,1724489444786,-67044.33090741,0.00011,2]
[335782126,1724489444799,-428.6376134,0.00011,2]
[335782128,1724489444810,-473.25526323,0.00011,2]
[335782130,1724489444822,-566.35561271,0.00011,2]
[335782132,1724489444833,-372659.86254884,0.00011,2]
[335782134,1724489444842,-1629489.80053477,0.00011,2]
[335782137,1724489444853,-10928.28345868,0.00011,2]
[335782183,1724489445791,-6298.44402981,0.00011,2]
[335782184,1724489445804,-2066.50353201,0.00011,2]
[335782185,1724489445815,-565.134902,0.00011,2]
[335782186,1724489445827,-314.2299998,0.00011,2]
[335782187,1724489445839,-612.34305062,0.00011,2]
[335782189,1724489445858,-8499.85506002,0.00011,2]
[335782191,1724489445869,-16288.40638518,0.00011,2]
[335782196,1724489445913,-432.05724792,0.00011,2]
[335782203,1724489445971,-5948.71108862,0.00011,2]
[335782205,1724489445983,-2470.79766762,0.00011,2]
[335782207,1724489445994,-263.86078829,0.00011,2]
[335782212,1724489446029,-949.65,0.00011,2]
[335782296,1724489490732,150.0,0.00021973,120]
[335782298,1724489551343,150.0,0.00024875,120]
[335782303,1724489610718,150.0,0.00025484,120]
[335782309,1724489709603,520.22,8.334e-05,2]
[335782311,1724489790730,150.0,0.00025711,120]
[335782312,1724489850714,150.0,0.00026985,120]
[335782314,1724490031312,150.0,0.00025942,120]
[335782315,1724490083205,168.24,9.975e-05,2]
[335782316,1724490105688,514.8,0.00027,120]
[335782318,1724490203860,178.66,9.953e-05,2]
[335782319,1724490232974,494.2,8.219e-05,2]
[335782320,1724490270722,150.0,0.00017253,120]
[335782321,1724490331656,150.0,0.00020776,120]
[335782322,1724490340341,259.79128337,9.888e-05,2]
[335782323,1724490340671,259.79128337,9.899e-05,2]
[335782324,1724490340992,259.79128337,9.91e-05,2]
[335782325,1724490341305,259.79128337,9.921e-05,2]
[335782326,1724490341614,259.79128337,9.932e-05,2]
[335782327,1724490341936,259.79128337,9.943e-05,2]
[335782328,1724490342277,259.79128337,9.954e-05,2]
[335782329,1724490342596,259.79128337,9.965e-05,2]
[335782330,1724490342921,259.79128337,9.976e-05,2]
[335782331,1724490343237,259.79128337,9.988e-05,2]
[335782332,1724490343548,259.79128337,9.999e-05,2]
[335782333,1724490343929,259.79128337,0.0001001,2]
[335782336,1724490398255,2646.16570701,0.00027,120]
[335782339,1724490450800,150.0,0.00026491,120]
[335782342,1724490482696,537.65,9.529e-05,2]
[335782343,1724490483110,6527.75382146,0.00010009,2]
[335782344,1724490483143,4015.74108734,0.00010009,2]
[335782345,1724490530257,341.16250447,0.00010009,4]
[335782370,1724490614686,2447.23793792,0.00010009,2]
[335782372,1724490628047,5409.69686454,0.00010009,2]
[335782373,1724490630743,150.0,0.00023102,120]
[335782376,1724490631989,-259.79128337,0.00010021,2]
[335782377,1724490631998,-300.0,0.00010025,2]
[335782378,1724490632008,-265.54939791,0.00010026,2]
[335782379,1724490632017,-1066.24934481,0.00010026,2]
[335782380,1724490632046,-778.63384695,0.00010026,2]
[335782381,1724490632105,-535.82317334,0.00010026,2]
[335782382,1724490632116,-8.10933907,0.00010026,2]
[335782383,1724490632125,-1657.7173403,0.00010026,2]
[335782384,1724490632136,-259.79128337,0.00010032,2]
[335782385,1724490632145,-259.79128337,0.00010043,2]
[335782386,1724490632154,-418.66282674,0.00010044,2]
[335782387,1724490632166,-43.68717326,0.00010044,2]
[335782388,1724490632175,-440.37274966,0.00010044,2]
[335782389,1724490632188,-259.79128337,0.00010054,2]
[335782390,1724490632197,-259.79128337,0.00010065,2]
[335782391,1724490632206,-157.71008658,0.00010076,2]
[335782392,1724490632228,-102.08119679,0.00010076,2]
[335782393,1724490632238,-259.79128337,0.00010087,2]
[335782394,1724490632248,-311.61484676,0.00010097,2]
[335782395,1724490632257,-155.0,0.00010097,2]
[335782396,1724490632269,-155.38649312,0.00010097,2]
[335782397,1724490632279,-259.79128337,0.00010099,2]
[335782398,1724490632288,-259.79128337,0.0001011,2]
[335782399,1724490632297,-259.79128337,0.00010121,2]
[335782400,1724490632306,-259.79128337,0.00010132,2]
[335782401,1724490632316,-259.79128337,0.00010143,2]
[335782402,1724490632326,-259.79128337,0.00010154,2]
[335782403,1724490632335,-259.79128337,0.00010165,2]
[335782404,1724490632345,-259.79128337,0.00010176,2]
[335782405,1724490632353,-259.79128337,0.00010187,2]
[335782406,1724490632362,-259.79128337,0.00010198,2]
[335782407,1724490632371,-41.12817471,0.00010209,2]
[335782408,1724490635157,265.54939791,0.00010009,2]
[335782415,1724490638073,-218.66310866,0.00010209,2]
[335782416,1724490638083,-259.79128337,0.00010221,2]
[335782417,1724490638092,-259.79128337,0.00010232,2]
[335782418,1724490638101,-93.06633063,0.00010243,2]
[335782419,1724490638131,-166.72495274,0.00010243,2]
[335782420,1724490638141,-158.263,0.00010243,2]
[335782421,1724490638150,-50.12786649,0.00010254,2]
[335782422,1724490638161,-209.66341688,0.00010254,2]
[335782423,1724490638171,-259.79128337,0.00010265,2]
[335782424,1724490638180,-259.79128337,0.00010276,2]
[335782425,1724490638192,-259.79128337,0.00010287,2]
[335782426,1724490638202,-39.48751236,0.00010298,2]
[335782427,1724490638213,-220.30377101,0.00010298,2]
[335782428,1724490638222,-259.79128337,0.00010309,2]
[335782429,1724490638232,-186.67778898,0.0001032,2]
[335782430,1724490638243,-73.11349439,0.0001032,2]
[335782431,1724490638252,-259.79128337,0.00010332,2]
[335782432,1724490638263,-259.79128337,0.00010343,2]
[335782433,1724490638272,-259.79128337,0.00010354,2]
[335782434,1724490638281,-259.79128337,0.00010365,2]
[335782435,1724490638291,-259.79128337,0.00010376,2]
[335782436,1724490638299,-259.79128337,0.00010387,2]
[335782437,1724490638309,-259.79128337,0.00010398,2]
[335782438,1724490638318,-150.41,0.00010404,2]
[335782439,1724490638327,-259.79128337,0.00010409,2]
[335782440,1724490638336,-259.79128337,0.0001042,2]
[335782441,1724490638345,-259.79128337,0.00010431,2]
[335782442,1724490638357,-259.79128337,0.00010443,2]
[335782443,1724490638367,-259.79128337,0.00010454,2]
[335782444,1724490638376,-259.79128337,0.00010465,2]
[335782445,1724490638385,-202.96629411,0.00010471,2]
[335782446,1724490638394,-155.0,0.00010471,2]
[335782447,1724490638403,-494.2,0.00010474,2]
[335782448,1724490638412,-259.79128337,0.00010476,2]
[335782449,1724490638421,-259.79128337,0.00010487,2]
[335782450,1724490638433,-259.79128337,0.00010498,2]
[335782451,1724490638442,-168.43745091,0.00010505,2]
[335782452,1724490638451,-259.79128337,0.00010509,2]
[335782453,1724490638459,-259.79128337,0.0001052,2]
[335782454,1724490638469,-259.79128337,0.00010531,2]
[335782455,1724490638478,-259.79128337,0.00010542,2]
[335782456,1724490638487,-259.79128337,0.00010554,2]
[335782457,1724490638496,-259.79128337,0.00010565,2]
[335782458,1724490638505,-547.39285044,0.00010566,2]
[335782459,1724490638514,-259.79128337,0.00010576,2]
[335782460,1724490638523,-259.79128337,0.00010587,2]
[335782461,1724490638533,-259.79128337,0.00010598,2]
[335782463,1724490638542,-259.79128337,0.00010609,2]
[335782465,1724490638551,-259.79128337,0.0001062,2]
[335782466,1724490638560,-259.79128337,0.00010631,2]
[335782468,1724490638570,-259.79128337,0.00010642,2]
[335782470,1724490638579,-259.79128337,0.00010653,2]
[335782472,1724490638588,-259.79128337,0.00010664,2]
[335782474,1724490638597,-259.79128337,0.00010676,2]
[335782476,1724490638607,-259.79128337,0.00010687,2]
[335782478,1724490638615,-259.79128337,0.00010698,2]
[335782480,1724490638624,-259.79128337,0.00010709,2]
[335782482,1724490638634,-537.65,0.0001072,2]
[335782484,1724490638643,-132.44470685,0.0001072,2]
[335782486,1724490638655,-127.34657652,0.0001072,2]
[335782488,1724490638663,-132.86598703,0.00010731,2]
[335782493,1724490638696,-126.92529634,0.00010731,2]
[335782494,1724490638705,-259.79128337,0.00010742,2]
[335782496,1724490638714,-259.79128337,0.00010753,2]
[335782498,1724490638723,-259.79128337,0.00010764,2]
[335782500,1724490638733,-259.79128337,0.00010775,2]
[335782502,1724490638742,-158.263,0.00010781,2]
[335782504,1724490638751,-259.79128337,0.00010787,2]
[335782506,1724490638759,-259.79128337,0.00010798,2]
[335782508,1724490638768,-4476.003,0.00010798,2]
[335782510,1724490638778,-3236.6523,0.000108,2]
[335782512,1724490638787,-183.44700845,0.000108,2]
[335782514,1724490638796,-7500.0,0.000108,2]
[335782515,1724490638804,-356.5811104,0.000108,2]
[335782516,1724490638814,-259.79128337,0.00010809,2]
[335782517,1724490638823,-259.79128337,0.0001082,2]
[335782518,1724490638832,-259.79128337,0.00010831,2]
[335782519,1724490638841,-259.79128337,0.00010842,2]
[335782520,1724490638850,-259.79128337,0.00010853,2]
[335782521,1724490638859,-626.520611,0.00010858,2]
[335782522,1724490638868,-2216.31651882,0.00010861,2]
[335782523,1724490638878,-259.79128337,0.00010864,2]
[335782524,1724490638888,-151.9688492,0.00010873,2]
[335782525,1724490638898,-169.963352,0.00010873,2]
[335782526,1724490638907,-259.79128337,0.00010875,2]
[335782527,1724490638916,-500.0,0.00010876,2]
[335782528,1724490638926,-626.520611,0.00010879,2]
[335782529,1724490638935,-259.79128337,0.00010886,2]
[335782530,1724490638944,-212.26695,0.0001089,2]
[335782531,1724490638954,-150.86,0.0001089,2]
[335782532,1724490638963,-1471.267,0.00010897,2]
[335782533,1724490638972,-259.79128337,0.00010898,2]
[335782534,1724490638982,-34028.4584,0.00010898,2]
[335782535,1724490638991,-500.0,0.00010899,2]
[335782536,1724490639000,-500.0,0.00010899,2]
[335782537,1724490639010,-2086.73797725,0.00010899,2]
[335782538,1724490639019,-551.0,0.000109,2]
[335782539,1724490639028,-1598516.7425316,0.000109,2]
[335782540,1724490639039,-636.74999999,0.000109,2]
[335782541,1724490639050,-1291.18,0.000109,2]
[335782542,1724490639073,-155.0,0.00010713,2]
[335782543,1724490639082,-1383.67257701,0.000109,2]
[335782544,1724490639094,-995.36520928,0.000109,2]
[335782545,1724490639116,-4977.56439929,0.000109,2]
[335782546,1724490639127,-8355.461751,0.000109,2]
[335782547,1724490639139,-33816.033428,0.000109,2]
[335782562,1724490639301,-483.28000469,0.000109,2]
[335782565,1724490639324,-445.42957939,0.000109,2]
[335782624,1724490640070,-4409.69574016,0.000109,2]
[335782626,1724490640082,-3162.60000008,0.000109,2]
[335782639,1724490640185,-158419.62436951,0.000109,2]
[335782640,1724490640197,-247.62511432,0.000109,2]
[335782642,1724490640207,-626.520611,0.000109,2]
[335782644,1724490640216,-259.79128337,0.00010909,2]
[335782646,1724490640226,-259.79128337,0.0001092,2]
[335782649,1724490640238,-259.79128337,0.00010931,2]
[335782651,1724490640248,-259.79128337,0.00010942,2]
[335782652,1724490640257,-259.79128337,0.00010953,2]
[335782655,1724490640266,-500.0,0.00010958,2]
[335782657,1724490640275,-519.4253581,0.00010958,2]
[335782658,1724490640284,-500.0,0.00010958,2]
[335782661,1724490640294,-500.0,0.00010958,2]
[335782663,1724490640303,-500.0,0.00010958,2]
[335782665,1724490640312,-500.0,0.00010958,2]
[335782667,1724490640322,-500.0,0.00010958,2]
[335782668,1724490640331,-500.0,0.00010958,2]
[335782670,1724490640339,-500.0,0.00010958,2]
[335782672,1724490640349,-500.0,0.00010958,2]
[335782674,1724490640358,-500.0,0.00010958,2]
[335782676,1724490640367,-500.0,0.00010958,2]
[335782678,1724490640376,-500.0,0.00010958,2]
[335782680,1724490640386,-500.0,0.00010958,2]
[335782682,1724490640395,-500.0,0.00010958,2]
[335782684,1724490640404,-500.0,0.00010958,2]
[335782686,1724490640413,-500.0,0.00010958,2]
[335782688,1724490640422,-500.0,0.00010958,2]
[335782689,1724490640431,-500.0,0.00010958,2]
[335782691,1724490640440,-500.0,0.00010958,2]
[335782693,1724490640449,-500.0,0.00010958,2]
[335782695,1724490640458,-222.63443899,0.00010958,2]
[335782697,1724490640467,-500.0,0.00010958,2]
[335782699,1724490640477,-500.0,0.00010958,2]
[335782701,1724490640486,-500.0,0.00010958,2]
[335782703,1724490640495,-500.0,0.00010958,2]
[335782705,1724490640504,-500.0,0.00010958,2]
[335782707,1724490640513,-187.39620617,0.00010958,2]
[335782709,1724490640522,-500.0,0.00010958,2]
[335782711,1724490640531,-500.0,0.00010958,2]
[335782713,1724490640540,-500.0,0.00010958,2]
[335782715,1724490640549,-500.0,0.00010958,2]
[335782717,1724490640558,-500.0,0.00010958,2]
[335782719,1724490640567,-500.0,0.00010958,2]
[335782721,1724490640576,-500.0,0.00010958,2]
[335782723,1724490640585,-500.0,0.00010958,2]
[335782725,1724490640594,-500.0,0.00010958,2]
[335782727,1724490640603,-500.0,0.00010958,2]
[335782729,1724490640612,-500.0,0.00010958,2]
[335782730,1724490640621,-523.23411463,0.00010958,2]
[335782732,1724490640630,-500.0,0.00010958,2]
[335782734,1724490640640,-500.0,0.00010958,2]
[335782736,1724490640649,-500.0,0.00010958,2]
[335782738,1724490640658,-500.0,0.00010958,2]
[335782740,1724490640667,-500.0,0.00010958,2]
[335782742,1724490640675,-597.29620133,0.00010958,2]
[335782744,1724490640684,-500.0,0.00010958,2]
[335782746,1724490640695,-500.0,0.00010958,2]
[335782748,1724490640704,-500.0,0.00010958,2]
[335782750,1724490640713,-500.0,0.00010958,2]
[335782751,1724490640722,-500.0,0.00010958,2]
[335782753,1724490640731,-500.0,0.00010958,2]
[335782755,1724490640740,-241.24016473,0.00010958,2]
[335782757,1724490640749,-500.0,0.00010958,2]
[335782759,1724490640759,-617.57,0.00010958,2]
[335782761,1724490640768,-500.0,0.00010958,2]
[335782763,1724490640777,-500.0,0.00010958,2]
[335782765,1724490640787,-500.0,0.00010958,2]
[335782767,1724490640796,-500.0,0.00010958,2]
[335782769,1724490640805,-607.51,0.00010958,2]
[335782771,1724490640815,-500.0,0.00010958,2]
[335782773,1724490640824,-500.0,0.00010958,2]
[335782774,1724490640833,-500.0,0.00010958,2]
[335782776,1724490640842,-500.0,0.00010958,2]
[335782778,1724490640851,-500.59,0.00010958,2]
[335782780,1724490640861,-517.50433491,0.00010958,2]
[335782782,1724490640870,-500.0,0.00010958,2]
[335782784,1724490640879,-500.0,0.00010958,2]
[335782786,1724490640888,-500.0,0.00010958,2]
[335782788,1724490640897,-508.91517609,0.00010958,2]
[335782790,1724490640907,-500.0,0.00010958,2]
[335782792,1724490640916,-353.95,0.00010958,2]
[335782794,1724490640925,-500.0,0.00010958,2]
[335782796,1724490640934,-500.0,0.00010958,2]
[335782798,1724490640943,-500.0,0.00010958,2]
[335782800,1724490640952,-506.50830258,0.00010958,2]
[335782802,1724490640961,-500.0,0.00010958,2]
[335782804,1724490640970,-165.22603457,0.00010958,2]
[335782806,1724490640979,-507.72098609,0.00010958,2]
[335782807,1724490640988,-500.0,0.00010958,2]
[335782809,1724490640997,-500.0,0.00010958,2]
[335782811,1724490641006,-500.0,0.00010958,2]
[335782813,1724490641015,-500.0,0.00010958,2]
[335782815,1724490641024,-500.0,0.00010958,2]
[335782817,1724490641033,-500.0,0.00010958,2]
[335782819,1724490641042,-500.0,0.00010958,2]
[335782821,1724490641051,-633.5925262,0.00010958,2]
[335782823,1724490641061,-500.0,0.00010958,2]
[335782825,1724490641070,-500.0,0.00010958,2]
[335782827,1724490641079,-500.0,0.00010958,2]
[335782828,1724490641088,-500.0,0.00010958,2]
[335782830,1724490641097,-154.00406197,0.00010958,2]
[335782832,1724490641106,-500.0,0.00010958,2]
[335782834,1724490641115,-506.83591535,0.00010958,2]
[335782836,1724490641124,-627.33958625,0.00010958,2]
[335782839,1724490641133,-500.0,0.00010958,2]
[335782841,1724490641143,-516.95735852,0.00010958,2]
[335782842,1724490641152,-507.67898088,0.00010958,2]
[335782844,1724490641161,-500.0,0.00010958,2]
[335782846,1724490641170,-500.0,0.00010958,2]
[335782848,1724490641179,-520.37465701,0.00010958,2]
[335782850,1724490641191,-500.0,0.00010958,2]
[335782852,1724490641201,-413.58751093,0.00010958,2]
[335782854,1724490641210,-500.0,0.00010958,2]
[335782856,1724490641219,-640.00195407,0.00010958,2]
[335782857,1724490641229,-500.0,0.00010958,2]
[335782859,1724490641238,-506.80297295,0.00010958,2]
[335782861,1724490641247,-500.0,0.00010958,2]
[335782862,1724490641256,-511.69143864,0.00010958,2]
[335782864,1724490641267,-500.0,0.00010958,2]
[335782866,1724490641276,-209.8116333,0.00010958,2]
[335782867,1724490641285,-506.05848821,0.00010958,2]
[335782869,1724490641294,-500.0,0.00010958,2]
[335782871,1724490641303,-500.0,0.00010958,2]
[335782872,1724490641312,-500.0,0.00010958,2]
[335782874,1724490641321,-500.0,0.00010958,2]
[335782876,1724490641330,-500.0,0.00010958,2]
[335782877,1724490641340,-500.0,0.00010958,2]
[335782879,1724490641349,-500.0,0.00010958,2]
[335782880,1724490641358,-514.16885936,0.00010958,2]
[335782882,1724490641367,-500.0,0.00010958,2]
[335782884,1724490641377,-524.40939818,0.00010958,2]
[335782885,1724490641386,-500.0,0.00010958,2]
[335782887,1724490641395,-500.0,0.00010958,2]
[335782889,1724490641404,-500.0,0.00010958,2]
[335782890,1724490641413,-500.0,0.00010958,2]
[335782892,1724490641423,-610.06730411,0.00010958,2]
[335782894,1724490641433,-500.0,0.00010958,2]
[335782896,1724490641443,-500.0,0.00010958,2]
[335782897,1724490641452,-500.0,0.00010958,2]
[335782899,1724490641461,-500.0,0.00010958,2]
[335782901,1724490641471,-405.2605777,0.00010958,2]
[335782902,1724490641481,-500.0,0.00010958,2]
[335782904,1724490641490,-500.0,0.00010958,2]
[335782906,1724490641500,-500.0,0.00010958,2]
[335782907,1724490641510,-500.0,0.00010958,2]
[335782909,1724490641519,-180.8927262,0.00010958,2]
[335782911,1724490641529,-500.0,0.00010958,2]
[335782913,1724490641538,-507.91679043,0.00010958,2]
[335782914,1724490641548,-517.3562038,0.00010958,2]
[335782916,1724490641557,-500.0,0.00010958,2]
[335782918,1724490641566,-500.0,0.00010958,2]
[335782920,1724490641576,-500.0,0.00010958,2]
[335782921,1724490641585,-523.08202064,0.00010958,2]
[335782923,1724490641595,-500.0,0.00010958,2]
[335782925,1724490641604,-500.0,0.00010958,2]
[335782926,1724490641614,-500.0,0.00010958,2]
[335782928,1724490641623,-500.0,0.00010958,2]
[335782930,1724490641634,-500.0,0.00010958,2]
[335782931,1724490641645,-500.0,0.00010958,2]
[335782933,1724490641655,-500.0,0.00010958,2]
[335782935,1724490641664,-500.0,0.00010958,2]
[335782937,1724490641673,-500.0,0.00010958,2]
[335782939,1724490641682,-542.52344445,0.00010958,2]
[335782940,1724490641692,-500.0,0.00010958,2]
[335782942,1724490641702,-205.43485824,0.00010958,2]
[335782944,1724490641712,-500.0,0.00010958,2]
[335782946,1724490641721,-506.185081,0.00010958,2]
[335782947,1724490641731,-500.0,0.00010958,2]
[335782949,1724490641741,-513.26780766,0.00010958,2]
[335782951,1724490641752,-500.0,0.00010958,2]
[335782953,1724490641763,-500.0,0.00010958,2]
[335782954,1724490641773,-500.0,0.00010958,2]
[335782956,1724490641783,-500.0,0.00010958,2]
[335782958,1724490641793,-500.0,0.00010958,2]
[335782960,1724490641804,-520.91416882,0.00010958,2]
[335782962,1724490641814,-525.86204865,0.00010958,2]
[335782963,1724490641824,-563.18052174,0.00010958,2]
[335782965,1724490641834,-500.0,0.00010958,2]
[335782967,1724490641844,-500.0,0.00010958,2]
[335782969,1724490641854,-500.0,0.00010958,2]
[335782971,1724490641864,-500.0,0.00010958,2]
[335782972,1724490641874,-500.0,0.00010958,2]
[335782974,1724490641887,-513.98363566,0.00010958,2]
[335782976,1724490641898,-500.0,0.00010958,2]
[335782978,1724490641908,-500.0,0.00010958,2]
[335782980,1724490641919,-500.0,0.00010958,2]
[335782981,1724490641930,-500.0,0.00010958,2]
[335782983,1724490641940,-222.13821074,0.00010958,2]
[335782985,1724490641950,-500.0,0.00010958,2]
[335782987,1724490641960,-500.0,0.00010958,2]
[335782989,1724490641970,-500.0,0.00010958,2]
[335782990,1724490641979,-500.0,0.00010958,2]
[335782992,1724490641988,-500.0,0.00010958,2]
[335782994,1724490641997,-516.4173318,0.00010958,2]
[335782996,1724490642007,-500.0,0.00010958,2]
[335782997,1724490642016,-500.0,0.00010958,2]
[335782999,1724490642026,-500.0,0.00010958,2]
[335783001,1724490642036,-438.29875796,0.00010958,2]
[335783003,1724490642046,-151.0,0.00010958,2]
[335783005,1724490642055,-463.15454907,0.00010958,2]
[335783006,1724490642063,-187.54961816,0.00010958,2]
[335783008,1724490642073,-507.46166324,0.00010958,2]
[335783010,1724490642082,-500.0,0.00010958,2]
[335783011,1724490642091,-516.98518635,0.00010958,2]
[335783013,1724490642101,-513.80102247,0.00010958,2]
[335783015,1724490642110,-500.0,0.00010958,2]
[335783017,1724490642120,-509.63739494,0.00010958,2]
[335783019,1724490642129,-500.0,0.00010958,2]
[335783020,1724490642141,-500.0,0.00010958,2]
[335783022,1724490642151,-500.0,0.00010958,2]
[335783024,1724490642160,-500.0,0.00010958,2]
[335783026,1724490642169,-500.0,0.00010958,2]
[335783028,1724490642178,-500.0,0.00010958,2]
[335783029,1724490642190,-500.0,0.00010958,2]
[335783031,1724490642199,-500.0,0.00010958,2]
[335783033,1724490642208,-500.0,0.00010958,2]
[335783035,1724490642217,-500.0,0.00010958,2]
[335783036,1724490642226,-306.06645275,0.00010958,2]
[335783038,1724490642236,-500.0,0.00010958,2]
[335783040,1724490642246,-500.0,0.00010958,2]
[335783042,1724490642255,-500.0,0.00010958,2]
[335783044,1724490642266,-500.0,0.00010958,2]
[335783045,1724490642275,-500.0,0.00010958,2]
[335783047,1724490642284,-388.34480846,0.00010958,2]
[335783049,1724490642293,-500.0,0.00010958,2]
[335783051,1724490642303,-500.0,0.00010958,2]
[335783052,1724490642312,-500.0,0.00010958,2]
[335783054,1724490642321,-500.0,0.00010958,2]
[335783056,1724490642330,-500.0,0.00010958,2]
[335783058,1724490642339,-524.4823707,0.00010958,2]
[335783059,1724490642348,-500.0,0.00010958,2]
[335783061,1724490642357,-500.0,0.00010958,2]
[335783063,1724490642366,-500.0,0.00010958,2]
[335783065,1724490642375,-500.0,0.00010958,2]
[335783066,1724490642385,-500.0,0.00010958,2]
[335783068,1724490642395,-500.0,0.00010958,2]
[335783070,1724490642404,-500.0,0.00010958,2]
[335783072,1724490642413,-500.0,0.00010958,2]
[335783074,1724490642422,-341.08434689,0.00010958,2]
[335783075,1724490642432,-500.0,0.00010958,2]
[335783077,1724490642441,-500.0,0.00010958,2]
[335783079,1724490642450,-500.0,0.00010958,2]
[335783081,1724490642460,-500.0,0.00010958,2]
[335783082,1724490642469,-500.0,0.00010958,2]
[335783084,1724490642479,-507.98485645,0.00010958,2]
[335783086,1724490642488,-500.0,0.00010958,2]
[335783088,1724490642497,-500.0,0.00010958,2]
[335783089,1724490642506,-500.0,0.00010958,2]
[335783091,1724490642516,-500.0,0.00010958,2]
[335783093,1724490642525,-500.0,0.00010958,2]
[335783095,1724490642534,-500.0,0.00010958,2]
[335783096,1724490642543,-498.36617202,0.00010958,2]
[335783098,1724490642552,-500.0,0.00010958,2]
[335783100,1724490642562,-500.0,0.00010958,2]
[335783102,1724490642571,-500.0,0.00010958,2]
[335783104,1724490642581,-500.0,0.00010958,2]
[335783105,1724490642590,-500.0,0.00010958,2]
[335783107,1724490642599,-500.0,0.00010958,2]
[335783109,1724490642609,-500.0,0.00010958,2]
[335783111,1724490642618,-500.0,0.00010958,2]
[335783112,1724490642627,-500.0,0.00010958,2]
[335783114,1724490642637,-500.0,0.00010958,2]
[335783116,1724490642647,-509.07432622,0.00010958,2]
[335783118,1724490642656,-511.47245412,0.00010958,2]
[335783120,1724490642665,-500.0,0.00010958,2]
[335783121,1724490642674,-500.0,0.00010958,2]
[335783123,1724490642683,-500.0,0.00010958,2]
[335783125,1724490642692,-500.0,0.00010958,2]
[335783127,1724490642702,-500.0,0.00010958,2]
[335783128,1724490642711,-500.0,0.00010958,2]
[335783130,1724490642720,-500.0,0.00010958,2]
[335783132,1724490642730,-151.0,0.00010958,2]
[335783134,1724490642741,-500.0,0.00010958,2]
[335783135,1724490642751,-500.0,0.00010958,2]
[335783137,1724490642760,-500.0,0.00010958,2]
[335783139,1724490642769,-500.0,0.00010958,2]
[335783141,1724490642778,-500.0,0.00010958,2]